fUST/lending_fUST_20250214
["ID","MTS","AMOUNT","RATE_DAILY","PERIOD"]
[353067759,1739541039194,-550.22,0.00013698,2]
[353067760,1739541039203,-500.0,0.00013698,2]
[353067761,1739541039213,-500.0,0.00013698,2]
[353067762,1739541039222,-500.0,0.00013698,2]
[353067763,1739541039232,-500.0,0.00013698,2]
[353067764,1739541039241,-500.0,0.00013698,2]
[353067765,1739541039250,-500.0,0.00013698,2]
[353067766,1739541039260,-500.0,0.00013698,2]
[353067767,1739541039269,-500.0,0.00013698,2]
[353067768,1739541039279,-500.0,0.00013698,2]
[353067769,1739541039288,-500.51874387,0.00013698,2]
[353067770,1739541039298,-500.0,0.00013698,2]
[353067771,1739541039307,-500.0,0.00013698,2]
[353067772,1739541039317,-878.23,0.00013698,2]
[353067773,1739541039327,-500.0,0.00013698,2]
[353067774,1739541039336,-500.0,0.00013698,2]
[353067775,1739541039346,-629.83837481,0.00013698,2]
[353067776,1739541039355,-1451.4,0.00013698,2]
[353067777,1739541039365,-520.935007,0.00013698,2]
[353067778,1739541039374,-500.0,0.00013698,2]
[353067779,1739541039383,-500.0,0.00013698,2]
[353067780,1739541039393,-500.0,0.00013698,2]
[353067781,1739541039403,-512.29,0.00013698,2]
[353067782,1739541039412,-500.0,0.00013698,2]
[353067783,1739541039422,-1736.09,0.00013698,2]
[353067784,1739541039434,-500.0,0.00013698,2]
[353067786,1739541039443,-605.72072481,0.00013698,2]
[353067788,1739541039452,-500.0,0.00013698,2]
[353067789,1739541039463,-1775.29,0.00013698,2]
[353067790,1739541039473,-500.0,0.00013698,2]
[353067791,1739541039483,-500.0,0.00013698,2]
[353067792,1739541039493,-500.0,0.00013698,2]
[353067793,1739541039503,-500.0,0.00013698,2]
[353067794,1739541039512,-559.68,0.00013698,2]
[353067795,1739541039522,-433.8890098,0.00013698,2]
[353067796,1739541039531,-500.0,0.00013698,2]
[353067797,1739541039541,-500.0,0.00013698,2]
[353067798,1739541039550,-500.0,0.00013698,2]
[353067799,1739541039560,-500.0,0.00013698,2]
[353067800,1739541039569,-500.0,0.00013698,2]
[353067801,1739541039579,-500.0,0.00013698,2]
[353067803,1739541039589,-500.0,0.00013698,2]
[353067805,1739541039598,-500.0,0.00013698,2]
[353067806,1739541039607,-500.0,0.00013698,2]
[353067807,1739541039616,-500.0,0.00013698,2]
[353067808,1739541039625,-500.0,0.00013698,2]
[353067809,1739541039635,-295.35954258,0.00013698,2]
[353067810,1739541039645,-500.0,0.00013698,2]
[353067811,1739541039772,-500.0,0.00013698,2]
[353067813,1739541039782,-500.0,0.00013698,2]
[353067815,1739541039791,-500.0,0.00013698,2]
[353067816,1739541039800,-1292.91,0.00013698,2]
[353067817,1739541039810,-500.0,0.00013698,2]
[353067818,1739541039819,-1636.15,0.00013698,2]
[353067819,1739541039828,-500.0,0.00013698,2]
[353067820,1739541039838,-500.0,0.00013698,2]
[353067821,1739541039847,-547.87103451,0.00013698,2]
[353067822,1739541039857,-595.65875474,0.00013698,2]
[353067823,1739541039866,-507.54005291,0.00013698,2]
[353067824,1739541039878,-500.0,0.00013698,2]
[353067825,1739541039887,-500.0,0.00013698,2]
[353067827,1739541039896,-500.0,0.00013698,2]
[353067828,1739541039906,-500.0,0.00013698,2]
[353067829,1739541039915,-500.0,0.00013698,2]
[353067830,1739541039924,-614.15177362,0.00013698,2]
[353067831,1739541039934,-500.0,0.00013698,2]
[353067832,1739541039943,-500.0,0.00013698,2]
[353067833,1739541039955,-500.0,0.00013698,2]
[353067834,1739541039966,-500.0,0.00013698,2]
[353067835,1739541039975,-500.0,0.00013698,2]
[353067836,1739541039984,-501.75703181,0.00013698,2]
[353067837,1739541039994,-500.0,0.00013698,2]
[353067838,1739541040003,-504.3178462,0.00013698,2]
[353067839,1739541040012,-502.04530904,0.00013698,2]
[353067840,1739541040021,-500.0,0.00013698,2]
[353067841,1739541040031,-581.17933971,0.00013698,2]
[353067842,1739541040039,-500.0,0.00013698,2]
[353067843,1739541040049,-500.0,0.00013698,2]
[353067844,1739541040058,-245.62404624,0.00013698,2]
[353067845,1739541040067,-286.50419672,0.00013698,2]
[353067846,1739541040076,-500.0,0.00013698,2]
[353067847,1739541040086,-259.8566846,0.00013698,2]
[353067849,1739541040095,-500.0,0.00013698,2]
[353067850,1739541040104,-500.0,0.00013698,2]
[353067851,1739541040113,-500.0,0.00013698,2]
[353067852,1739541040122,-500.0,0.00013698,2]
[353067853,1739541040131,-500.0,0.00013698,2]
[353067855,1739541040141,-500.0,0.00013698,2]
[353067856,1739541040150,-510.41,0.00013698,2]
[353067857,1739541040159,-500.0,0.00013698,2]
[353067858,1739541040169,-500.0,0.00013698,2]
[353067859,1739541040178,-680.42,0.00013698,2]
[353067860,1739541040188,-500.0,0.00013698,2]
[353067861,1739541040197,-500.0,0.00013698,2]
[353067862,1739541040207,-500.0,0.00013698,2]
[353067863,1739541040217,-500.0,0.00013698,2]
[353067864,1739541040227,-2216.33,0.00013698,2]
[353067865,1739541040236,-1183.84,0.00013698,2]
[353067866,1739541040246,-500.0,0.00013698,2]
[353067867,1739541040256,-500.0,0.00013698,2]
[353067868,1739541040265,-500.0,0.00013698,2]
[353067869,1739541040275,-500.0,0.00013698,2]
[353067870,1739541040284,-500.0,0.00013698,2]
[353067872,1739541040294,-3537.34,0.00013698,2]
[353067875,1739541040303,-500.0,0.00013698,2]
[353067878,1739541040313,-500.0,0.00013698,2]
[353067880,1739541040322,-500.0,0.00013698,2]
[353067882,1739541040334,-500.0,0.00013698,2]
[353067884,1739541040343,-501.2999824,0.00013698,2]
[353067886,1739541040353,-7686.89,0.00013698,2]
[353067888,1739541040363,-3770.96,0.00013698,2]
[353067890,1739541040372,-500.0,0.00013698,2]
[353067892,1739541040382,-194.66946926,0.00013698,2]
[353067894,1739541040391,-500.0,0.00013698,2]
[353067896,1739541040401,-500.48946921,0.00013698,2]
[353067898,1739541040411,-500.0,0.00013698,2]
[353067900,1739541040420,-14037.03,0.00013698,2]
[353067902,1739541040430,-500.0,0.00013698,2]
[353067904,1739541040440,-500.0,0.00013698,2]
[353067906,1739541040449,-676.29,0.00013698,2]
[353067908,1739541040459,-500.0,0.00013698,2]
[353067910,1739541040468,-500.0,0.00013698,2]
[353067912,1739541040478,-500.0,0.00013698,2]
[353067914,1739541040488,-500.0,0.00013698,2]
[353067916,1739541040498,-500.0,0.00013698,2]
[353067918,1739541040506,-500.0,0.00013698,2]
[353067920,1739541040516,-500.0,0.00013698,2]
[353067922,1739541040525,-500.0,0.00013698,2]
[353067924,1739541040534,-500.0,0.00013698,2]
[353067926,1739541040544,-500.0,0.00013698,2]
[353067928,1739541040554,-500.0,0.00013698,2]
[353067930,1739541040563,-567.77148428,0.00013698,2]
[353067932,1739541040572,-500.0,0.00013698,2]
[353067934,1739541040582,-500.0,0.00013698,2]
[353067936,1739541040591,-500.0,0.00013698,2]
[353067938,1739541040600,-1292.86,0.00013698,2]
[353067940,1739541040609,-500.0,0.00013698,2]
[353067942,1739541040618,-500.0,0.00013698,2]
[353067944,1739541040628,-500.0,0.00013698,2]
[353067946,1739541040637,-774.25,0.00013698,2]
[353067948,1739541040646,-1239.94,0.00013698,2]
[353067950,1739541040654,-500.0,0.00013698,2]
[353067952,1739541040663,-640.37,0.00013698,2]
[353067954,1739541040673,-500.0,0.00013698,2]
[353067956,1739541040683,-1794.7,0.00013698,2]
[353067958,1739541040692,-500.0,0.00013698,2]
[353067960,1739541040701,-500.0,0.00013698,2]
[353067962,1739541040710,-460.00274758,0.00013698,2]
[353067964,1739541040719,-500.0,0.00013698,2]
[353067966,1739541040728,-4106.52,0.00013698,2]
[353067968,1739541040737,-500.0,0.00013698,2]
[353067970,1739541040746,-500.0,0.00013698,2]
[353067972,1739541040755,-502.11434103,0.00013698,2]
[353067974,1739541040765,-500.0,0.00013698,2]
[353067976,1739541040774,-5222.78,0.00013698,2]
[353067978,1739541040783,-500.0,0.00013698,2]
[353067980,1739541040792,-271.0707789,0.00013698,2]
[353067982,1739541040802,-500.0,0.00013698,2]
[353067984,1739541040811,-500.0,0.00013698,2]
[353067986,1739541040820,-1415.53,0.00013698,2]
[353067988,1739541040829,-500.0,0.00013698,2]
[353067990,1739541040838,-2142.27,0.00013698,2]
[353067992,1739541040847,-508.17913529,0.00013698,2]
[353067994,1739541040858,-500.0,0.00013698,2]
[353067996,1739541040871,-1674.83,0.00013698,2]
[353067998,1739541040883,-500.0,0.00013698,2]
[353067999,1739541040892,-500.0,0.00013698,2]
[353068001,1739541040901,-500.0,0.00013698,2]
[353068004,1739541040911,-500.0,0.00013698,2]
[353068006,1739541040920,-500.0,0.00013698,2]
[353068007,1739541040929,-500.0,0.00013698,2]
[353068010,1739541040939,-500.0,0.00013698,2]
[353068012,1739541040949,-500.0,0.00013698,2]
[353068014,1739541040958,-500.0,0.00013698,2]
[353068016,1739541040968,-500.0,0.00013698,2]
[353068018,1739541040979,-500.0,0.00013698,2]
[353068020,1739541040988,-500.0,0.00013698,2]
[353068022,1739541040998,-500.0,0.00013698,2]
[353068024,1739541041008,-500.0,0.00013698,2]
[353068026,1739541041017,-43681.68,0.00013698,2]
[353068028,1739541041026,-500.0,0.00013698,2]
[353068030,1739541041035,-500.0,0.00013698,2]
[353068032,1739541041044,-500.0,0.00013698,2]
[353068034,1739541041054,-500.0,0.00013698,2]
[353068036,1739541041063,-500.0,0.00013698,2]
[353068038,1739541041072,-502.48267641,0.00013698,2]
[353068040,1739541041081,-500.0,0.00013698,2]
[353068042,1739541041090,-500.0,0.00013698,2]
[353068044,1739541041099,-500.0,0.00013698,2]
[353068046,1739541041108,-500.0,0.00013698,2]
[353068048,1739541041117,-500.0,0.00013698,2]
[353068050,1739541041126,-500.0,0.00013698,2]
[353068052,1739541041135,-500.0,0.00013698,2]
[353068054,1739541041144,-500.0,0.00013698,2]
[353068056,1739541041154,-500.0,0.00013698,2]
[353068058,1739541041163,-500.0,0.00013698,2]
[353068060,1739541041172,-627.44,0.00013698,2]
[353068062,1739541041182,-512.81,0.00013698,2]
[353068064,1739541041191,-510.78452865,0.00013698,2]
[353068066,1739541041200,-501.94370888,0.00013698,2]
[353068068,1739541041209,-500.0,0.00013698,2]
[353068070,1739541041219,-500.0,0.00013698,2]
[353068072,1739541041227,-500.51122662,0.00013698,2]
[353068074,1739541041236,-500.0,0.00013698,2]
[353068076,1739541041245,-2112.43,0.00013698,2]
[353068078,1739541041255,-500.0,0.00013698,2]
[353068080,1739541041264,-500.0,0.00013698,2]
[353068082,1739541041273,-500.0,0.00013698,2]
[353068084,1739541041282,-842.75,0.00013698,2]
[353068086,1739541041291,-1300.63,0.00013698,2]
[353068088,1739541041300,-500.0,0.00013698,2]
[353068090,1739541041309,-1333.12,0.00013698,2]
[353068092,1739541041318,-500.0,0.00013698,2]
[353068094,1739541041327,-500.0,0.00013698,2]
[353068096,1739541041336,-500.0,0.00013698,2]
[353068098,1739541041346,-500.0,0.00013698,2]
[353068100,1739541041355,-302.07617009,0.00013698,2]
[353068102,1739541041365,-2358.49,0.00013698,2]
[353068104,1739541041374,-17936.35,0.00013698,2]
[353068106,1739541041383,-500.0,0.00013698,2]
[353068108,1739541041392,-1497.92,0.00013698,2]
[353068110,1739541041401,-500.0,0.00013698,2]
[353068112,1739541041411,-500.0,0.00013698,2]
[353068114,1739541041419,-561.43,0.00013698,2]
[353068116,1739541041428,-500.0,0.00013698,2]
[353068118,1739541041438,-500.0,0.00013698,2]
[353068120,1739541041447,-500.0,0.00013698,2]
[353068122,1739541041456,-500.0,0.00013698,2]
[353068124,1739541041465,-500.0,0.00013698,2]
[353068126,1739541041475,-500.0,0.00013698,2]
[353068128,1739541041484,-500.0,0.00013698,2]
[353068130,1739541041493,-500.0,0.00013698,2]
[353068132,1739541041503,-500.0,0.00013698,2]
[353068134,1739541041512,-500.0,0.00013698,2]
[353068136,1739541041521,-500.0,0.00013698,2]
[353068138,1739541041530,-500.0,0.00013698,2]
[353068140,1739541041539,-593.91,0.00013698,2]
[353068142,1739541041550,-500.0,0.00013698,2]
[353068144,1739541041559,-500.0,0.00013698,2]
[353068146,1739541041568,-884.8,0.00013698,2]
[353068147,1739541041577,-384.1121605,0.00013698,2]
[353068149,1739541041586,-2083.0,0.00013698,2]
[353068152,1739541041595,-7912.86,0.00013698,2]
[353068154,1739541041605,-500.0,0.00013698,2]
[353068156,1739541041614,-398.22327546,0.00013698,2]
[353068158,1739541041623,-500.0,0.00013698,2]
[353068159,1739541041632,-500.0,0.00013698,2]
[353068161,1739541041642,-500.0,0.00013698,2]
[353068163,1739541041651,-3351.58,0.00013698,2]
[353068166,1739541041661,-500.0,0.00013698,2]
[353068168,1739541041669,-500.0,0.00013698,2]
[353068169,1739541041679,-500.0,0.00013698,2]
[353068171,1739541041688,-500.0,0.00013698,2]
[353068174,1739541041698,-3638.78,0.00013698,2]
[353068175,1739541041707,-500.0,0.00013698,2]
[353068178,1739541041716,-617.57,0.00013698,2]
[353068179,1739541041726,-809.49,0.00013698,2]
[353068181,1739541041735,-1938.98,0.00013698,2]
[353068183,1739541041745,-500.0,0.00013698,2]
[353068185,1739541041754,-500.0,0.00013698,2]
[353068188,1739541041763,-4415.28,0.00013698,2]
[353068189,1739541041773,-1486.22,0.00013698,2]
[353068191,1739541041782,-500.0,0.00013698,2]
[353068193,1739541041791,-500.0,0.00013698,2]
[353068195,1739541041801,-500.0,0.00013698,2]
[353068198,1739541041810,-500.0,0.00013698,2]
[353068199,1739541041819,-500.0,0.00013698,2]
[353068202,1739541041828,-1722.93,0.00013698,2]
[353068204,1739541041838,-500.0,0.00013698,2]
[353068206,1739541041847,-330.41889319,0.00013698,2]
[353068208,1739541041857,-500.0,0.00013698,2]
[353068210,1739541041866,-500.0,0.00013698,2]
[353068212,1739541041879,-537.77,0.00013698,2]
[353068214,1739541041888,-500.0,0.00013698,2]
[353068216,1739541041897,-500.0,0.00013698,2]
[353068218,1739541041907,-668.18,0.00013698,2]
[353068219,1739541041917,-500.0,0.00013698,2]
[353068222,1739541041926,-500.0,0.00013698,2]
[353068223,1739541041937,-500.0,0.00013698,2]
[353068225,1739541041946,-500.0,0.00013698,2]
[353068228,1739541041958,-500.0,0.00013698,2]
[353068229,1739541041974,-500.0,0.00013698,2]
[353068231,1739541041984,-500.0,0.00013698,2]
[353068233,1739541041993,-500.0,0.00013698,2]
[353068235,1739541042003,-500.0,0.00013698,2]
[353068237,1739541042012,-500.0,0.00013698,2]
[353068239,1739541042021,-500.0,0.00013698,2]
[353068242,1739541042030,-2638.08,0.00013698,2]
[353068244,1739541042039,-500.0,0.00013698,2]
[353068245,1739541042049,-196.342821,0.00013699,2]
[353068248,1739541042059,-559.37711143,0.00013699,2]
[353068250,1739541042068,-151.0,0.000137,2]
[353068252,1739541042077,-151.0,0.000137,2]
[353068254,1739541042087,-25408.45662623,0.000137,2]
[353068255,1739541042096,-7438.69753278,0.00013763,2]
[353068257,1739541042106,-500.0,0.0001378,2]
[353068259,1739541042114,-500.0,0.0001378,2]
[353068260,1739541042123,-500.0,0.0001378,2]
[353068261,1739541042132,-500.0,0.0001378,2]
[353068263,1739541042238,-500.0,0.0001378,2]
[353068265,1739541042248,-500.0,0.0001378,2]
[353068267,1739541042257,-500.0,0.0001378,2]
[353068269,1739541042267,-500.0,0.0001378,2]
[353068271,1739541042276,-500.0,0.0001378,2]
[353068273,1739541042285,-500.0,0.0001378,2]
[353068275,1739541042295,-500.0,0.0001378,2]
[353068277,1739541042304,-661.98,0.0001378,2]
[353068279,1739541042313,-500.0,0.0001378,2]
[353068281,1739541042322,-702.02,0.0001378,2]
[353068283,1739541042331,-500.0,0.0001378,2]
[353068285,1739541042340,-945.9,0.0001378,2]
[353068287,1739541042350,-500.0,0.0001378,2]
[353068289,1739541042359,-500.0,0.0001378,2]
[353068291,1739541042368,-500.0,0.0001378,2]
[353068293,1739541042378,-500.0,0.0001378,2]
[353068295,1739541042388,-500.0,0.0001378,2]
[353068297,1739541042397,-500.0,0.0001378,2]
[353068299,1739541042406,-500.0,0.0001378,2]
[353068301,1739541042415,-500.0,0.0001378,2]
[353068303,1739541042424,-780.19,0.0001378,2]
[353068305,1739541042434,-256.93517649,0.0001378,2]
[353068307,1739541042442,-741.83,0.0001378,2]
[353068309,1739541042451,-550.22,0.0001378,2]
[353068311,1739541042460,-500.0,0.0001378,2]
[353068313,1739541042469,-500.0,0.0001378,2]
[353068315,1739541042478,-500.0,0.0001378,2]
[353068317,1739541042487,-500.0,0.0001378,2]
[353068318,1739541042497,-500.0,0.0001378,2]
[353068322,1739541042506,-500.0,0.0001378,2]
[353068325,1739541042516,-500.0,0.0001378,2]
[353068328,1739541042524,-878.23,0.0001378,2]
[353068331,1739541042535,-1451.4,0.0001378,2]
[353068333,1739541042544,-500.0,0.0001378,2]
[353068337,1739541042553,-269.56383552,0.0001378,2]
[353068340,1739541042562,-512.29,0.0001378,2]
[353068343,1739541042571,-500.0,0.0001378,2]
[353068345,1739541042580,-1736.09,0.0001378,2]
[353068348,1739541042590,-500.0,0.0001378,2]
[353068350,1739541042599,-500.0,0.0001378,2]
[353068354,1739541042608,-1775.29,0.0001378,2]
[353068358,1739541042617,-500.0,0.0001378,2]
[353068362,1739541042627,-500.0,0.0001378,2]
[353068363,1739541042636,-500.0,0.0001378,2]
[353068365,1739541042645,-559.68,0.0001378,2]
[353068367,1739541042654,-500.0,0.0001378,2]
[353068369,1739541042663,-553.69,0.0001378,2]
[353068371,1739541042673,-500.0,0.0001378,2]
[353068373,1739541042682,-500.0,0.0001378,2]
[353068376,1739541042691,-500.0,0.0001378,2]
[353068379,1739541042700,-500.0,0.0001378,2]
[353068383,1739541042710,-500.0,0.0001378,2]
[353068385,1739541042719,-500.0,0.0001378,2]
[353068387,1739541042728,-500.0,0.0001378,2]
[353068389,1739541042737,-1292.91,0.0001378,2]
[353068391,1739541042747,-1636.15,0.0001378,2]
[353068393,1739541042756,-500.0,0.0001378,2]
[353068396,1739541042765,-500.0,0.0001378,2]
[353068398,1739541042775,-500.0,0.0001378,2]
[353068400,1739541042784,-500.0,0.0001378,2]
[353068402,1739541042794,-500.0,0.0001378,2]
[353068404,1739541042803,-500.0,0.0001378,2]
[353068406,1739541042812,-501.8015462,0.0001378,2]
[353068408,1739541042821,-500.0,0.0001378,2]
[353068410,1739541042830,-500.0,0.0001378,2]
[353068412,1739541042839,-500.0,0.0001378,2]
[353068414,1739541042849,-500.0,0.0001378,2]
[353068416,1739541042858,-500.0,0.0001378,2]
[353068418,1739541042868,-510.41,0.0001378,2]
[353068420,1739541042882,-500.0,0.0001378,2]
[353068422,1739541042892,-680.42,0.0001378,2]
[353068424,1739541042901,-454.23905826,0.0001378,2]
[353068426,1739541042910,-2216.33,0.0001378,2]
[353068428,1739541042920,-1183.84,0.0001378,2]
[353068430,1739541042930,-500.0,0.0001378,2]
[353068432,1739541042940,-500.0,0.0001378,2]
[353068434,1739541042951,-500.0,0.0001378,2]
[353068436,1739541042960,-3537.34,0.0001378,2]
[353068438,1739541042970,-500.0,0.0001378,2]
[353068440,1739541042980,-7686.89,0.0001378,2]
[353068442,1739541042989,-3770.96,0.0001378,2]
[353068444,1739541042999,-500.0,0.0001378,2]
[353068446,1739541043008,-14037.03,0.0001378,2]
[353068448,1739541043018,-500.0,0.0001378,2]
[353068450,1739541043027,-500.0,0.0001378,2]
[353068452,1739541043038,-676.29,0.0001378,2]
[353068454,1739541043047,-500.0,0.0001378,2]
[353068456,1739541043056,-500.0,0.0001378,2]
[353068458,1739541043065,-500.0,0.0001378,2]
[353068460,1739541043075,-501.89238646,0.0001378,2]
[353068462,1739541043084,-500.0,0.0001378,2]
[353068464,1739541043094,-1292.86,0.0001378,2]
[353068466,1739541043104,-500.0,0.0001378,2]
[353068468,1739541043113,-774.25,0.0001378,2]
[353068470,1739541043122,-1239.94,0.0001378,2]
[353068472,1739541043132,-500.0,0.0001378,2]
[353068474,1739541043141,-640.37,0.0001378,2]
[353068476,1739541043150,-500.0,0.0001378,2]
[353068478,1739541043159,-1794.7,0.0001378,2]
[353068480,1739541043169,-4106.52,0.0001378,2]
[353068482,1739541043180,-500.0,0.0001378,2]
[353068484,1739541043191,-5222.78,0.0001378,2]
[353068486,1739541043200,-1415.53,0.0001378,2]
[353068488,1739541043210,-500.0,0.0001378,2]
[353068490,1739541043220,-2142.27,0.0001378,2]
[353068492,1739541043229,-500.0,0.0001378,2]
[353068494,1739541043239,-1674.83,0.0001378,2]
[353068496,1739541043249,-500.0,0.0001378,2]
[353068498,1739541043258,-500.0,0.0001378,2]
[353068500,1739541043268,-43681.68,0.0001378,2]
[353068502,1739541043277,-500.0,0.0001378,2]
[353068504,1739541043286,-500.0,0.0001378,2]
[353068506,1739541043295,-500.0,0.0001378,2]
[353068508,1739541043305,-512.81,0.0001378,2]
[353068510,1739541043314,-2112.43,0.0001378,2]
[353068512,1739541043324,-500.0,0.0001378,2]
[353068514,1739541043333,-230.12438075,0.0001378,2]
[353068517,1739541043344,-500.0,0.0001378,2]
[353068520,1739541043353,-842.75,0.0001378,2]
[353068524,1739541043362,-1300.63,0.0001378,2]
[353068527,1739541043371,-500.0,0.0001378,2]
[353068530,1739541043380,-1333.12,0.0001378,2]
[353068535,1739541043390,-257.49429732,0.0001378,2]
[353068538,1739541043401,-500.0,0.0001378,2]
[353068540,1739541043410,-2358.49,0.0001378,2]
[353068543,1739541043418,-17314.93377147,0.0001378,2]
[353068571,1739541043551,-621.41622853,0.0001378,2]
[353068574,1739541043560,-500.0,0.0001378,2]
[353068577,1739541043570,-1497.92,0.0001378,2]
[353068580,1739541043579,-623.54228442,0.0001378,2]
[353068583,1739541043588,-561.43,0.0001378,2]
[353068586,1739541043598,-500.0,0.0001378,2]
[353068589,1739541043607,-500.0,0.0001378,2]
[353068591,1739541043617,-500.0,0.0001378,2]
[353068593,1739541043626,-500.0,0.0001378,2]
[353068595,1739541043636,-500.0,0.0001378,2]
[353068597,1739541043645,-500.0,0.0001378,2]
[353068599,1739541043655,-500.0,0.0001378,2]
[353068601,1739541043664,-593.91,0.0001378,2]
[353068603,1739541043673,-500.0,0.0001378,2]
[353068605,1739541043682,-500.0,0.0001378,2]
[353068607,1739541043693,-884.8,0.0001378,2]
[353068609,1739541043702,-2083.0,0.0001378,2]
[353068611,1739541043712,-7912.86,0.0001378,2]
[353068613,1739541043721,-500.0,0.0001378,2]
[353068615,1739541043731,-500.0,0.0001378,2]
[353068617,1739541043740,-330.06,0.0001378,2]
[353068619,1739541043749,-3351.58,0.0001378,2]
[353068621,1739541043759,-500.0,0.0001378,2]
[353068623,1739541043769,-500.0,0.0001378,2]
[353068625,1739541043778,-500.0,0.0001378,2]
[353068627,1739541043787,-3638.78,0.0001378,2]
[353068629,1739541043796,-617.57,0.0001378,2]
[353068631,1739541043806,-809.49,0.0001378,2]
[353068633,1739541043815,-1305.08026219,0.0001378,2]
[353068637,1739541043836,-633.89973781,0.0001378,2]
[353068639,1739541043845,-500.0,0.0001378,2]
[353068641,1739541043854,-3229.64773482,0.0001378,2]
[353068643,1739541043867,-1185.63226518,0.0001378,2]
[353068645,1739541043882,-1486.22,0.0001378,2]
[353068647,1739541043892,-500.0,0.0001378,2]
[353068649,1739541043902,-500.0,0.0001378,2]
[353068651,1739541043911,-1722.93,0.0001378,2]
[353068653,1739541043922,-500.0,0.0001378,2]
[353068655,1739541043931,-500.0,0.0001378,2]
[353068657,1739541043942,-537.77,0.0001378,2]
[353068659,1739541043952,-500.0,0.0001378,2]
[353068661,1739541043962,-500.0,0.0001378,2]
[353068663,1739541043972,-588.19947768,0.0001378,2]
[353068665,1739541043983,-79.98052232,0.0001378,2]
[353068667,1739541043993,-500.0,0.0001378,2]
[353068669,1739541044002,-500.0,0.0001378,2]
[353068671,1739541044012,-500.0,0.0001378,2]
[353068673,1739541044021,-500.0,0.0001378,2]
[353068675,1739541044030,-500.0,0.0001378,2]
[353068677,1739541044039,-500.0,0.0001378,2]
[353068680,1739541044050,-2638.08,0.0001378,2]
[353068682,1739541044059,-500.0,0.0001378,2]
[353068684,1739541044069,-151.0,0.000138,2]
[353068686,1739541044078,-151.0,0.000138,2]
[353068688,1739541044087,-151.0,0.000138,2]
[353068690,1739541044097,-151.0,0.000138,2]
[353068692,1739541044106,-138.33290016,0.00013844,2]
[353068715,1739541044439,-500.0,0.00013698,2]
[353068717,1739541044449,-500.0,0.0001378,2]
[353068719,1739541044458,-350.30198311,0.00013844,2]
[353068721,1739541044467,-178.0498606,0.00013845,2]
[353068723,1739541044477,-178.04,0.00013845,2]
[353068725,1739541044487,-1420.55364761,0.00013845,2]
[353068727,1739541044496,-1478.810264,0.00013859,2]
[353068729,1739541044505,-500.0,0.00013862,2]
[353068731,1739541044515,-210.75929116,0.00013862,2]
[353068733,1739541044524,-500.0,0.00013862,2]
[353068735,1739541044533,-500.0,0.00013863,2]
[353068737,1739541044543,-500.0,0.00013863,2]
[353068739,1739541044552,-500.0,0.00013863,2]
[353068741,1739541044562,-500.0,0.00013863,2]
[353068743,1739541044571,-46.87401187,0.00013863,2]
[353068746,1739541044584,-453.12598813,0.00013863,2]
[353068748,1739541044593,-500.0,0.00013863,2]
[353068750,1739541044602,-495.90127631,0.00013863,2]